Cogmind - Beta 11 @@@ ROGUE MODE // 2022.07.24 @ 15:32:26 Player: atlas Result: Destroyed by G-34 Mercenary with Small Laser Performance ------------- Evolutions (0) 0 Regions Visited (1) 200 Robots Destroyed (6) 30 Value Destroyed (132) 132 Prototype IDs (0) 0 Alien Tech Used (0) 0 Bonus (0) 0 TOTAL SCORE: 362 Bonus ------- None Cogmind --------- Core Integrity 0/250 Matter 230/300 Energy 96/100 System Corruption 0% Temperature Cool (15) Movement Core (50) Location -10/Materials Parts ------- > --- POWER (1) -------- (None) > --- PROPULSION (2) --- (None) > --- UTILITY (2) ------ Targeting Computer > --- WEAPON (2) ------- Mining Claw > --- INVENTORY (5) ---- Aluminum Leg Sensor Array Seismic Detector Small Laser Peak State ------------ > --- POWER ------------ Light Ion Engine > --- PROPULSION ------- Aluminum Leg Aluminum Leg > --- UTILITY ---------- Heat Sink Seismic Detector > --- WEAPON ----------- Small Laser Light Assault Rifle > --- INVENTORY -------- (None) [Rating: 7] Favorites ----------- Power Light Ion Engine Engine Light Ion Engine Propulsion Aluminum Leg Treads Light Treads Leg Aluminum Leg Hover Unit Hover Unit Utility Targeting Computer Device Seismic Detector Processor Targeting Computer Weapon Light Assault Rifle Energy Gun Small Laser Ballistic Gun Light Assault Rifle Slashing Weapon Mining Claw Build | -11 -10 ------- Run | Scr Mat Slots Evolved . | . . Power . | . . Propulsion . | . . Utility . | . . Weapon . | . . Parts Attached 18 | 7 11 Power 2 | 1 1 Engine 2 | 1 1 Core . | . . Reactor . | . . Propulsion 4 | 2 2 Treads 1 | . 1 Leg 2 | 2 . Wheel . | . . Hover 1 | . 1 Flight . | . . Utility 5 | 2 3 Device 4 | 2 2 Storage . | . . Processor 1 | . 1 Hackware . | . . Protection . | . . Artifact . | . . Weapon 7 | 2 5 Energy Gun 3 | 1 2 Energy Cannon . | . . Ballistic Gun 2 | 1 1 Ballistic Cannon . | . . Launcher . | . . Special Weapon . | . . Impact Weapon . | . . Slashing Weapon 2 | . 2 Piercing Weapon . | . . Special Melee Weapon . | . . Unidentified Prototypes . | . . Parts Lost 4 | . 4 Power 1 | . 1 Propulsion 1 | . 1 Utility 1 | . 1 Weapon 1 | . 1 Highest Loss Streak 4 | . 4 To Critical Strikes . | . . Average Slot Usage (%) 83 | . 83 Engine 11 | . 11 Treads 6 | . 6 Leg 4 | . 4 Hover 4 | . 4 Device 15 | . 15 Processor 11 | . 11 Energy Gun 9 | . 9 Ballistic Gun 12 | . 12 Slashing Weapon 5 | . 5 Naked Turns . | . . Heaviest Build 7 | 7 7 Greatest Support 20 | 20 20 Greatest Overweight (x) 2 | . 2 Average Overweight (x) . | . . Largest Inventory Capacity 5 | 5 5 Average Capacity 5 | 5 5 Most Carried 5 | 2 5 Average Carried 1 | . 2 Final Capacity 5 | 5 5 Final Carried 4 | . 4 Class Distribution -------------------- 100% | Mutant Dominant Class ---------------- Mutant | -10/Materials Resources | -11 -10 ----------- Run | Scr Mat Matter Collected 315 | 260 55 Remotely . | . . Salvage Created 182 | 85 97 Parts 14 | 7 7 Haulers Intercepted . | . . Recyclers Shooed . | . . Parts Field Recycled . | . . Retrieved Matter . | . . Parts Self-Destructed . | . . Prevented . | . . Kills | -11 -10 ------- Run | Scr Mat Combat Hostiles Destroyed 3 | 1 2 Melee 1 | . 1 Guns 2 | 1 1 Classes Destroyed 3 | 2 1 Tunneler 2 | 2 . Watcher 1 | . 1 Grunt 3 | 1 2 Best Kill Streak 3 | 3 1 Combat Bots Only 1 | 1 1 Max Kills in Single Turn 1 | 1 1 Gunslinging . | . . Exploded . | . . Melee 1 | . 1 Uniques/NPCs Destroyed . | . . Combat | -11 -10 -------- Run | Scr Mat Damage Taken 486 | 53 433 Core 259 | 31 228 Absorbed by Shields . | . . Regen/Repaired (Parts) 10 | . 10 Core Remaining (%) 87 | 87 . Volleys Fired 26 | 10 16 Largest 2 | 2 2 Hottest 60 | 60 60 Shots Fired 39 | 20 19 Gun 39 | 20 19 Cannon . | . . Launcher . | . . Special . | . . Kinetic 25 | 10 15 Thermal 14 | 10 4 Explosive . | . . Electromagnetic . | . . Robot Hit Streak 9 | 4 9 Robot Miss Streak 3 | 3 2 Penetration Max . | . . Secondary Targets . | . . Shots Hit Robots 28 | 14 14 Core Hits 11 | 5 6 Critical Kills . | . . Critical Parts Destroyed . | . . Critical Strikes . | . . Melee Attacks 5 | . 5 Impact . | . . Slashing 5 | . 5 Piercing . | . . Sneak Attacks . | . . Combat Hostiles . | . . Follow-up Attacks . | . . Damage Inflicted 348 | 157 191 Guns 272 | 157 115 Cannons . | . . Explosions . | . . Melee 76 | . 76 Ramming . | . . Kinetic 150 | 59 91 Thermal 122 | 98 24 Explosive . | . . Electromagnetic . | . . Impact . | . . Slashing 76 | . 76 Piercing . | . . Highest Corruption . | . . Average Corruption . | . . Corruption Purged . | . . Corruption Blocked . | . . Overload Shots . | . . Overflow Damage . | . . Projectiles . | . . Explosions . | . . Melee . | . . Knockbacks . | . . Impact . | . . Kinetic . | . . Secondary . | . . Self-Inflicted Damage . | . . Shots . | . . Rammed . | . . Targets Rammed . | . . Kicked . | . . Crushed . | . . Highest Temperature 70 | 70 46 Average Temperature 22 | 28 14 Received Heat Transfer 288 | 30 258 Siege Activations . | . . Robots Corrupted . | . . Combat Hostiles . | . . Parts Fried . | . . Impact Corruptions . | . . Robots Melted . | . . Combat Hostiles . | . . Parts Melted . | . . Heat Transferred 275 | 225 50 Parts Sabotaged . | . . Parts Stolen . | . . Parts Stripped . | . . Power Chain Reactions . | . . Missiles Intercepted . | . . Alert | -11 -10 ------- Run | Scr Mat Peak Influence 86 | 30 86 Initial 19 | . 19 Average 29 | 7 37 Maximum Alert Level . | . . Low Security (%) 100 | 100 100 Level 1 . | . . Level 2 . | . . Level 3 . | . . Level 4 . | . . Level 5 . | . . High Security . | . . Max Security . | . . Squads Dispatched 1 | . 1 Investigation . | . . Extermination . | . . Reinforcement 1 | . 1 Assault . | . . Garrison . | . . Intercept . | . . Searches Triggered . | . . Construction Impeded . | . . Haulers Reinforced . | . . Active Scanning Responses . | . . Cargo Convoy Interrupts . | . . Stealth | -11 -10 --------- Run | Scr Mat Distress Signals . | . . Communications Jammed . | . . Distress Signals . | . . Times Spotted 10 | 1 9 Peak Tracking Total 5 | 1 5 Tactical Retreats . | . . Traps | -11 -10 ------- Run | Scr Mat Traps Triggered . | . . Indirectly . | . . Trap Hack Attempts . | . . Triggered . | . . Disarmed . | . . Reprogrammed . | . . Reused . | . . Traps Extracted . | . . Installed . | . . Triggered . | . . Machines | -11 -10 ---------- Run | Scr Mat Machines Disabled . | . . Max in Single Turn . | . . Machines Sabotaged . | . . Garrisons Compromised . | . . Overloaded Fab Kills . | . . Hacking | -11 -10 --------- Run | Scr Mat Machines Accessed 1 | . 1 Terminals . | . . Fabricators . | . . Repair Stations 1 | . 1 Recycling Units . | . . Scanalyzers . | . . Garrison Access . | . . Total Hacks 2 | . 2 Successful 2 | . 2 Failed . | . . Catastrophic . | . . Database Lockouts . | . . Manual 3 | . 3 Terminals . | . . Fabricators . | . . Repair Stations 2 | . 2 Recycling Units . | . . Scanalyzers . | . . Garrison Access . | . . Terminal Hacks . | . . Fabricator Hacks . | . . Repair Station Hacks 2 | . 2 Scan Component 1 | . 1 Repair 1 | . 1 Recycling Unit Hacks . | . . Scanalyzer . | . . Garrison Access Hacks . | . . Unauthorized Hacks . | . . Terminals . | . . Fabricators . | . . Repair Stations . | . . Recycling Units . | . . Scanalyzers . | . . Garrison Access . | . . Data Cores Recovered . | . . Used . | . . Hacking Detections 1 | . 1 Full Trace Events . | . . Feedback Events . | . . Feedback Blocked . | . . Robot Schematics Acquired . | . . Robots Built . | . . Authchips . | . . Time . | . . Total Robot Build Rating . | . . Part Schematics Acquired . | . . Parts Built . | . . Authchips . | . . Time . | . . Total Part Build Rating . | . . Parts Repaired 1 | . 1 Time 26 | . 26 Parts Recycled . | . . Recycled Matter . | . . Retrieved Matter . | . . Retrieved Components . | . . Parts Scanalyzed . | . . Part Schematics Acquired . | . . Parts Damaged . | . . Bothacking | -11 -10 ------------ Run | Scr Mat Used RIF Installer . | . . Robots Hacked . | . . Non-combat . | . . Combat . | . . Robot Hacks Applied . | . . Relay Couplers Released . | . . Fabnet Peak Effective % . | . . Robots Rewired . | . . Allies Hacked . | . . Hacks Repelled . | . . Allies | -11 -10 -------- Run | Scr Mat Total Allies . | . . Largest Group . | . . Highest-Rated Group . | . . Highest-Rated Ally . | . . Total Orders . | . . Ally Attacks . | . . Total Damage . | . . Kills . | . . Allies Corrupted . | . . Allies Melted . | . . Intel | -11 -10 ------- Run | Scr Mat Robot Analysis Total . | . . Derelict Logs Recovered . | . . Drone Launches . | . . Drone Recoveries . | . . Exploration | -11 -10 ------------- Run | Scr Mat Turns Passed 466 | 128 338 Spaces Moved 291 | 85 206 Core 30 | 22 8 Treads 96 | . 96 Legs 94 | 63 31 Wheels . | . . Hover 71 | . 71 Flight . | . . Fastest Speed 50 | 50 50 Average Speed 121 | 101 130 Slowest Speed 160 | 120 160 Overloaded Moves . | . . Propulsion Burnouts . | . . Robots Hopped . | . . Cave-ins Triggered . | . . Exploration Rate (%) 22 | 9 36 Regions Visited 1 Branch Regions . Pre-discovered Areas . | . . Known Exits Taken . | . . Unknown Exits Taken 1 | 1 . Scrap Searched . | . . Spaces Dug . | . . Terrain Destroyed . | . . Melee . | . . Projectile . | . . AOE . | . . Terrain Rammed . | . . Walls Destroyed . | . . Machines Disabled . | . . Actions | -11 -10 --------- Run | Scr Mat Total 361 | 108 253 Wait . | . . Move 290 | 84 206 Hop . | . . Pick Up 16 | 7 9 Fast Attach . | . . Attach 13 | 7 6 Detach 1 | . 1 Swap 5 | . 5 Drop 5 | . 5 Fire 26 | 10 16 Melee 5 | . 5 Ram . | . . Kick . | . . Crush . | . . Escape Stasis . | . . Rewire . | . . Trap . | . . Miscellaneous . | . . Route ------- -11/Scrapyard -10/Materials (discovered 2 exits: [*Min x2]) History --------- Turn | Location | Event 2 | -11/Scrapyard | Met Revision 17 72 | -11/Scrapyard | Discovered new exit (range 8) 129 | -11/Scrapyard | Entered Materials 223 | -10/Materials | Repaired Lgt. Ion Engine 313 | -10/Materials | Build established: Mutant 325 | -10/Materials | Discovered new exit (range 8) 431 | -10/Materials | Discovered new exit (range 7) 461 | -10/Materials | Core integrity fell below 50% 465 | -10/Materials | Core integrity fell below 20% 467 | -10/Materials | Destroyed by G-34 Mercenary with Small Laser Last Messages --------------- 00362_ K-01 Serf collects debris. 00364_ R-06 Scavenger inserts Lgt. Treads into recycling unit. 00367_ R-06 Scavenger inserts Hover Unit into recycling unit. 00372_ Connecting with Recycling Unit... 00382_ G-34 Mercenary destroyed. 00387_ Acquired 43 matter. 00400_ Acquired Tractor Beam. 00402_ Dropped Lgt. Assault Rifle. 00402_ Dropped Sensor Array. 00413_ Acquired Lgt. Assault Rifle. 00415_ Acquired Sensor Array. 00431_ EXIT=FOUND 00440_ Hover Unit destroyed. 00448_ Lgt. Ion Engine destroyed. 00453_ Tractor Beam destroyed. 00453_ Critical hit (Burn: +37). 00459_ Lgt. Assault Rifle destroyed. 00463_ G-34 Mercenary destroyed. Map ----- +----------------------------------------------------+ | ?????????????????????????????????????????????????? | | ?????????????????????????????????????????????????? | | ?????????????????????????????????????????????????? | | ?????????????????????????????????????????????????? | | ?????????????????????????????????????????????????? | | ?????????????????????????????????????????????????? | | ?????????????????????????????????????????????????? | | ?????????????????????????????????????????????????? | | ?????????????????????????????????????????????????? | | ?????????????????????????????????????????????????? | | ???????????????????????? ??????????????????????? | | ???????????????????????# ??????????????????????? | | ???????????????????????# ??????????????????????? | | ???????????????????????# #?????????????????????? | | ???????????????????????# #?????????????????????? | | ???????????????????????# #?????????????????????? | | ???????????????????????# #???####??????????????? | | ???????????????????????# #?? ??????????????? | | ???????????????????????# #?? """??????????????? | | ???????????????????????#k #? ""???????????????? | | ??????????????????????## r #? "????????????????? | | ??????????????????????? # * ??????????????????? | | ???????????????????????# # ???????????????????? | | ???????????????????????# gg/ ????????????????????? | | ???????????????#########*% #?????????????????????? | | ???????????????# #g@ #?????????????????????? | | ???????????????# """" # #############?????????? | | ???????????????# """" # ??????? | | ???????????????# """" + ??????? | | ???????? ????# # ??????? | | ??????## ????###+##### ## #########???????? | | ????? #?????# #?? # #???????????????? | | ?????? #?????# ##"" #? #???????????????? | | ?????? #?????# ##!! #? #???????????????? | | ??????# #???### ##"" < #?? #???????????????? | | ??????# #???# ##!! #?? ???????????????? | | ??????# #???# ##"" #???###??????????????? | | ??????# #???# ##" #????????????????????? | | ??????# #???# #?### ##????????????????????? | | ??????# #???# #???# ?????????????????????? | | ??????# #???# #???# ?????????????????????? | | ???# ##### #???# ?????????????????????? | | ???# = ##### #??????????????????? | | ???# = #??????????????????? | | ???# "" #??????????????????? | | ???# "" "" #??????????????????? | | ?### """ T" "T #??????????????????? | | ?#"" """ "" "" #??????????????????? | | ##"Y """ "" ???????????????????? | | ##"" [[! ??????????########### | +----------------------------------------------------+ Best States ------------- Heat Dissipation 35 Energy Generation 10 Energy Capacity 125 Matter Stores 300 Matter Capacity 300 Sight Range 16 Robot Scan Range 14 Terrain Scan Density 10 Evasion (%) 55 Targeting Accuracy 5 Recoil Reduction 1 Item Schematics ----------------- None Robot Schematics ------------------ None Fabricated ------------ Nothing Alien Tech Used ----------------- None Achievements -------------- Part-time Mechanic Challenges ------------ None Game ------ Seed HeartIntegratedDrive Manual? 0 Play Time 00:09:38 Cumulative 1.4 hours Start 2022.07.24 @ 15:25:04 End 2022.07.24 @ 15:32:26 Sessions 1 Manual Loads 0 Difficulty Rogue Special Mode None Game No. 2 Rogue 2 Adventurer 0 Explorer 0 Win Type - Total 0 Types 0/0/0/0/0/0/0/0/0 Lore% 0 Gallery% 4 Achievement% 3 Wizard Run 0 Options --------- ASCII 0 Keyboard 0 Movement Mouse Keybinds 0 Fullscreen 1 Font 16/SmallcapsGlow Map View 50x54 Tactical HUD 1 Map Filters NONE Filters NONE Steam 0 RUN: 4b186790-f825-4f26-83d1-6605b9fa5b0d